[Event "Titled Tuesday Blitz March 07 Early 2023"]
[White "Tsydypov, Zhamsaran"]
[Black "Yosha_Iglesias"]
[WhiteFideId "4108566"]
[WhiteElo "2584"]
[BlackElo "2479"]
[Result "1-0"]
[Round "01"]
[TimeControl "180+2"]
[Date "2023.03.07"]
[WhiteClock "0:02:02"]
[BlackClock "0:00:41"]

1. d4 {[%clk 0:02:56]}  d5 {[%clk 0:02:59]} 2. Nf3 {[%clk 0:02:56]}  Nf6 {[%clk 0:02:58]} 3. c4 {[%clk 0:02:56]}  e6 {[%clk 0:02:58]} 4. g3 {[%clk 0:02:56]}  h6 {[%clk 0:02:58]} 5. Bg2 {[%clk 0:02:56]}  Bd6 {[%clk 0:02:55]} 6. O-O {[%clk 0:02:56]}  O-O {[%clk 0:02:52]} 7. Qc2 {[%clk 0:02:56]}  b6 {[%clk 0:02:46]} 8. cxd5 {[%clk 0:02:53]}  exd5 {[%clk 0:02:46]} 9. Nc3 {[%clk 0:02:52]}  Re8 {[%clk 0:02:28]} 10. Nb5 {[%clk 0:02:50]}  Bd7 {[%clk 0:02:23]} 11. Nxd6 {[%clk 0:02:50]}  cxd6 {[%clk 0:02:24]} 12. Bf4 {[%clk 0:02:50]}  Ne4 {[%clk 0:02:06]} 13. Nd2 {[%clk 0:02:49]}  Bf5 {[%clk 0:02:06]} 14. g4 {[%clk 0:02:32]}  Bg6 {[%clk 0:02:02]} 15. Qd1 {[%clk 0:02:26]}  Nc6 {[%clk 0:01:54]} 16. e3 {[%clk 0:02:23]}  Rc8 {[%clk 0:01:52]} 17. Nxe4 {[%clk 0:02:23]}  Bxe4 {[%clk 0:01:40]} 18. f3 {[%clk 0:02:23]}  Bg6 {[%clk 0:01:39]} 19. Qb3 {[%clk 0:02:15]}  Ne7 {[%clk 0:01:14]} 20. Rac1 {[%clk 0:02:13]}  Qd7 {[%clk 0:01:15]} 21. h4 {[%clk 0:02:13]}  f6 {[%clk 0:01:05]} 22. h5 {[%clk 0:02:10]}  Bf7 {[%clk 0:01:05]} 23. Kh2 {[%clk 0:02:11]}  Rxc1 {[%clk 0:01:04]} 24. Rxc1 {[%clk 0:02:10]}  Rc8 {[%clk 0:01:05]} 25. Rxc8+ {[%clk 0:02:09]}  Nxc8 {[%clk 0:01:03]} 26. Qc3 {[%clk 0:02:07]}  Be6 {[%clk 0:00:51]} 27. Bf1 {[%clk 0:02:06]}  Ne7 {[%clk 0:00:49]} 28. Qb4 {[%clk 0:02:04]}  Nc6 {[%clk 0:00:47]} 29. Qxd6 {[%clk 0:02:03]}  Qxd6 {[%clk 0:00:48]} 30. Bxd6 {[%clk 0:02:04]}  Na5 {[%clk 0:00:44]} 31. b3 {[%clk 0:02:04]}  Kf7 {[%clk 0:00:42]} 32. Bb5 {[%clk 0:02:02]}  Nb7 {[%clk 0:00:41]} 33. Bb8 {[%clk 0:02:02]} 1-0


[Site "https://www.chess.com"]

[Event "Titled Tuesday Blitz March 07 Early 2023"]
[White "Ronka, Erik"]
[Black "Narayanan.S.L"]
[WhiteFideId "505080"]
[BlackFideId "5058422"]
[WhiteElo "2264"]
[BlackElo "2547"]
[Result "0-1"]
[Round "01"]
[TimeControl "180+2"]
[Date "2023.03.07"]
[WhiteClock "0:00:04"]
[BlackClock "0:02:08"]

1. e4 {[%clk 0:03:00]}  e6 {[%clk 0:02:53]} 2. d4 {[%clk 0:02:59]}  d5 {[%clk 0:02:54]} 3. Nc3 {[%clk 0:02:59]}  Bb4 {[%clk 0:02:54]} 4. e5 {[%clk 0:02:59]}  b6 {[%clk 0:02:54]} 5. a3 {[%clk 0:02:59]}  Bf8 {[%clk 0:02:53]} 6. Nf3 {[%clk 0:02:34]}  c5 {[%clk 0:02:51]} 7. Bg5 {[%clk 0:02:27]}  Be7 {[%clk 0:02:30]} 8. h4 {[%clk 0:02:01]}  h6 {[%clk 0:02:29]} 9. Bxe7 {[%clk 0:01:18]}  Nxe7 {[%clk 0:02:28]} 10. Nb5 {[%clk 0:01:19]}  O-O {[%clk 0:02:26]} 11. c3 {[%clk 0:01:19]}  Ba6 {[%clk 0:02:25]} 12. Nd6 {[%clk 0:01:16]}  Bxf1 {[%clk 0:02:25]} 13. Kxf1 {[%clk 0:01:17]}  Nbc6 {[%clk 0:02:24]} 14. Qe2 {[%clk 0:01:06]}  Nc8 {[%clk 0:02:21]} 15. Nxc8 {[%clk 0:01:05]}  Rxc8 {[%clk 0:02:21]} 16. g3 {[%clk 0:00:57]}  cxd4 {[%clk 0:02:20]} 17. cxd4 {[%clk 0:00:56]}  f6 {[%clk 0:02:17]} 18. Kg2 {[%clk 0:00:50]}  fxe5 {[%clk 0:02:17]} 19. dxe5 {[%clk 0:00:46]}  Qd7 {[%clk 0:02:16]} 20. Rac1 {[%clk 0:00:40]}  Rf7 {[%clk 0:02:15]} 21. Rc3 {[%clk 0:00:34]}  Rcf8 {[%clk 0:02:15]} 22. Rhc1 {[%clk 0:00:34]}  Ne7 {[%clk 0:02:12]} 23. Rc7 {[%clk 0:00:32]}  Qa4 {[%clk 0:02:11]} 24. R1c3 {[%clk 0:00:29]}  Qg4 {[%clk 0:02:10]} 25. Rxa7 {[%clk 0:00:19]}  Ng6 {[%clk 0:02:08]} 26. Rxf7 {[%clk 0:00:18]}  Rxf7 {[%clk 0:02:09]} 27. Qe3 {[%clk 0:00:16]}  Rxf3 {[%clk 0:02:07]} 28. Qxb6 {[%clk 0:00:09]}  Nxh4+ {[%clk 0:02:06]} 29. Kg1 {[%clk 0:00:07]}  Rxc3 {[%clk 0:02:06]} 30. bxc3 {[%clk 0:00:07]}  Nf3+ {[%clk 0:02:07]} 31. Kg2 {[%clk 0:00:07]}  Ng5 {[%clk 0:02:07]} 32. Qd8+ {[%clk 0:00:06]}  Kh7 {[%clk 0:02:07]} 33. Qf8 {[%clk 0:00:05]}  Qe4+ {[%clk 0:02:07]} 34. Kh2 {[%clk 0:00:04]}  Nf3+ {[%clk 0:02:07]} 35. Kh3 {[%clk 0:00:04]}  Nxe5 {[%clk 0:02:08]} 36. a4 {[%clk 0:00:04]}  Qh1# {[%clk 0:02:08]} 0-1


[Site "https://www.chess.com"]

[Event "Titled Tuesday Blitz March 07 Early 2023"]
[White "Terry, Renato"]
[Black "Goltseva, Ekaterina"]
[WhiteFideId "3803457"]
[BlackFideId "24173770"]
[WhiteElo "2579"]
[BlackElo "2200"]
[Result "1-0"]
[Round "01"]
[TimeControl "180+2"]
[Date "2023.03.07"]
[WhiteClock "0:00:24"]
[BlackClock "0:00:03"]

1. e4 {[%clk 0:02:54]}  e6 {[%clk 0:02:58]} 2. d4 {[%clk 0:02:38]}  d5 {[%clk 0:02:58]} 3. exd5 {[%clk 0:02:36]}  exd5 {[%clk 0:02:57]} 4. Nf3 {[%clk 0:02:36]}  Bd6 {[%clk 0:02:52]} 5. c4 {[%clk 0:02:24]}  dxc4 {[%clk 0:02:51]} 6. Bxc4 {[%clk 0:02:23]}  Nf6 {[%clk 0:02:51]} 7. O-O {[%clk 0:02:19]}  O-O {[%clk 0:02:51]} 8. Nc3 {[%clk 0:02:20]}  h6 {[%clk 0:02:50]} 9. Re1 {[%clk 0:02:17]}  Bg4 {[%clk 0:02:49]} 10. h3 {[%clk 0:02:18]}  Bh5 {[%clk 0:02:48]} 11. g4 {[%clk 0:02:18]}  Bg6 {[%clk 0:02:37]} 12. Ne5 {[%clk 0:02:18]}  Bxe5 {[%clk 0:02:22]} 13. dxe5 {[%clk 0:02:16]}  Qxd1 {[%clk 0:02:20]} 14. Rxd1 {[%clk 0:02:17]}  Ne4 {[%clk 0:02:21]} 15. Nd5 {[%clk 0:02:10]}  Nc6 {[%clk 0:02:09]} 16. f4 {[%clk 0:01:52]}  Rad8 {[%clk 0:01:53]} 17. Be3 {[%clk 0:01:51]}  h5 {[%clk 0:01:38]} 18. Nxc7 {[%clk 0:01:43]}  Rc8 {[%clk 0:01:07]} 19. Nd5 {[%clk 0:01:36]}  hxg4 {[%clk 0:00:54]} 20. hxg4 {[%clk 0:01:30]}  Nxe5 {[%clk 0:00:49]} 21. Ne7+ {[%clk 0:01:19]}  Kh8 {[%clk 0:00:48]} 22. Be2 {[%clk 0:00:59]}  Rce8 {[%clk 0:00:32]} 23. Nd5 {[%clk 0:00:46]}  Ng3 {[%clk 0:00:23]} 24. fxe5 {[%clk 0:00:46]}  Nxe2+ {[%clk 0:00:21]} 25. Kf2 {[%clk 0:00:47]}  Rxe5 {[%clk 0:00:19]} 26. Kxe2 {[%clk 0:00:45]}  Be4 {[%clk 0:00:17]} 27. Nc3 {[%clk 0:00:42]}  Bc6 {[%clk 0:00:13]} 28. Kf2 {[%clk 0:00:41]}  Rfe8 {[%clk 0:00:13]} 29. Re1 {[%clk 0:00:41]}  f6 {[%clk 0:00:11]} 30. Bxa7 {[%clk 0:00:41]}  Rd8 {[%clk 0:00:09]} 31. Rxe5 {[%clk 0:00:41]}  fxe5 {[%clk 0:00:10]} 32. Rd1 {[%clk 0:00:40]}  Rf8+ {[%clk 0:00:10]} 33. Ke1 {[%clk 0:00:36]}  Bf3 {[%clk 0:00:09]} 34. Rd7 {[%clk 0:00:35]}  e4 {[%clk 0:00:08]} 35. Bd4 {[%clk 0:00:34]}  Rg8 {[%clk 0:00:09]} 36. g5 {[%clk 0:00:34]}  Kh7 {[%clk 0:00:09]} 37. Rd6 {[%clk 0:00:34]}  Rc8 {[%clk 0:00:05]} 38. Kf2 {[%clk 0:00:31]}  Rf8 {[%clk 0:00:03]} 39. Kg3 {[%clk 0:00:31]}  g6 {[%clk 0:00:03]} 40. Rd7+ {[%clk 0:00:31]}  Kg8 {[%clk 0:00:03]} 41. Rg7+ {[%clk 0:00:31]}  Kh8 {[%clk 0:00:04]} 42. Nd5 {[%clk 0:00:31]}  Rf5 {[%clk 0:00:02]} 43. Rxg6+ {[%clk 0:00:30]}  Kh7 {[%clk 0:00:02]} 44. Rh6+ {[%clk 0:00:24]}  Kg8 {[%clk 0:00:02]} 45. g6 {[%clk 0:00:25]}  Rg5+ {[%clk 0:00:02]} 46. Kf4 {[%clk 0:00:25]}  Rg4+ {[%clk 0:00:03]} 47. Ke3 {[%clk 0:00:25]}  Kf8 {[%clk 0:00:03]} 48. Rh8# {[%clk 0:00:24]} 1-0


[Site "https://www.chess.com"]

[Event "Titled Tuesday Blitz March 07 Early 2023"]
[White "Mortazavi, Ali"]
[Black "Keymer, Vincent"]
[WhiteFideId "401323"]
[BlackFideId "12940690"]
[WhiteElo "2339"]
[BlackElo "2651"]
[Result "0-1"]
[Round "01"]
[TimeControl "180+2"]
[Date "2023.03.07"]
[WhiteClock "0:00:10"]
[BlackClock "0:00:20"]

1. Nf3 {[%clk 0:02:57]}  d5 {[%clk 0:02:59]} 2. g3 {[%clk 0:02:57]}  c6 {[%clk 0:02:59]} 3. Bg2 {[%clk 0:02:58]}  Bg4 {[%clk 0:02:59]} 4. O-O {[%clk 0:02:59]}  Nd7 {[%clk 0:02:59]} 5. d3 {[%clk 0:03:00]}  Ngf6 {[%clk 0:02:59]} 6. c4 {[%clk 0:02:59]}  dxc4 {[%clk 0:02:58]} 7. dxc4 {[%clk 0:02:59]}  h6 {[%clk 0:02:59]} 8. b3 {[%clk 0:02:47]}  e5 {[%clk 0:02:55]} 9. h3 {[%clk 0:02:36]}  Be6 {[%clk 0:02:55]} 10. Bb2 {[%clk 0:02:35]}  Qc7 {[%clk 0:02:50]} 11. Nc3 {[%clk 0:02:27]}  Rd8 {[%clk 0:02:47]} 12. Qc2 {[%clk 0:02:26]}  Bc5 {[%clk 0:02:41]} 13. Nh4 {[%clk 0:02:14]}  O-O {[%clk 0:02:31]} 14. Rad1 {[%clk 0:02:09]}  Rfe8 {[%clk 0:02:30]} 15. Kh2 {[%clk 0:02:01]}  a5 {[%clk 0:02:22]} 16. e3 {[%clk 0:01:58]}  Bf8 {[%clk 0:02:16]} 17. Ne4 {[%clk 0:01:52]}  Nxe4 {[%clk 0:02:02]} 18. Bxe4 {[%clk 0:01:52]}  Nc5 {[%clk 0:01:49]} 19. Bh7+ {[%clk 0:01:43]}  Kh8 {[%clk 0:01:49]} 20. f4 {[%clk 0:01:43]}  e4 {[%clk 0:01:42]} 21. Bf5 {[%clk 0:01:24]}  Bxf5 {[%clk 0:01:23]} 22. Nxf5 {[%clk 0:01:23]}  Kg8 {[%clk 0:01:24]} 23. Be5 {[%clk 0:00:37]}  Qc8 {[%clk 0:01:23]} 24. g4 {[%clk 0:00:31]}  Nd3 {[%clk 0:01:21]} 25. Ba1 {[%clk 0:00:26]}  f6 {[%clk 0:01:01]} 26. Rg1 {[%clk 0:00:27]}  Qe6 {[%clk 0:00:57]} 27. Rg2 {[%clk 0:00:27]}  Kf7 {[%clk 0:00:47]} 28. Rdg1 {[%clk 0:00:26]}  Rd7 {[%clk 0:00:45]} 29. Nd4 {[%clk 0:00:26]}  Qd6 {[%clk 0:00:43]} 30. Nf5 {[%clk 0:00:25]}  Qc7 {[%clk 0:00:43]} 31. Kh1 {[%clk 0:00:24]}  g6 {[%clk 0:00:37]} 32. Qc3 {[%clk 0:00:22]}  Qd8 {[%clk 0:00:32]} 33. Nh4 {[%clk 0:00:18]}  Bb4 {[%clk 0:00:22]} 34. Qc2 {[%clk 0:00:15]}  Ne1 {[%clk 0:00:22]} 35. Rxe1 {[%clk 0:00:14]}  Bxe1 {[%clk 0:00:22]} 36. f5 {[%clk 0:00:14]}  Bxh4 {[%clk 0:00:22]} 37. fxg6+ {[%clk 0:00:14]}  Kxg6 {[%clk 0:00:23]} 38. Rg1 {[%clk 0:00:13]}  Rd2 {[%clk 0:00:21]} 39. Qc1 {[%clk 0:00:12]}  Qd3 {[%clk 0:00:20]} 40. Rf1 {[%clk 0:00:10]}  Qe2 {[%clk 0:00:20]} 0-1


[Site "https://www.chess.com"]

[Event "Titled Tuesday Blitz March 07 Early 2023"]
[White "Bruned, Yvain"]
[Black "Bluebaum, Matthias"]
[WhiteFideId "2250292"]
[BlackFideId "24651516"]
[WhiteElo "2183"]
[BlackElo "2638"]
[Result "0-1"]
[Round "01"]
[TimeControl "180+2"]
[Date "2023.03.07"]
[WhiteClock "0:01:02"]
[BlackClock "0:01:02"]

1. b3 {[%clk 0:03:00]}  d5 {[%clk 0:03:00]} 2. Bb2 {[%clk 0:03:00]}  c5 {[%clk 0:03:00]} 3. e3 {[%clk 0:03:01]}  a6 {[%clk 0:03:01]} 4. Nf3 {[%clk 0:03:01]}  Nc6 {[%clk 0:03:01]} 5. Be2 {[%clk 0:03:01]}  Bg4 {[%clk 0:02:59]} 6. O-O {[%clk 0:03:01]}  e6 {[%clk 0:02:59]} 7. d4 {[%clk 0:03:01]}  Bxf3 {[%clk 0:02:54]} 8. Bxf3 {[%clk 0:03:00]}  cxd4 {[%clk 0:02:55]} 9. Bxd4 {[%clk 0:02:54]}  Nxd4 {[%clk 0:02:45]} 10. exd4 {[%clk 0:02:55]}  Nf6 {[%clk 0:02:43]} 11. c4 {[%clk 0:02:53]}  Rc8 {[%clk 0:02:34]} 12. c5 {[%clk 0:02:46]}  Be7 {[%clk 0:02:34]} 13. Nc3 {[%clk 0:02:42]}  O-O {[%clk 0:02:34]} 14. Re1 {[%clk 0:02:40]}  Qa5 {[%clk 0:02:14]} 15. Na4 {[%clk 0:02:34]}  Bd8 {[%clk 0:02:02]} 16. a3 {[%clk 0:02:32]}  Nd7 {[%clk 0:01:52]} 17. b4 {[%clk 0:02:28]}  Qc7 {[%clk 0:01:52]} 18. Rc1 {[%clk 0:02:24]}  Bf6 {[%clk 0:01:50]} 19. Qd2 {[%clk 0:02:19]}  Nb8 {[%clk 0:01:45]} 20. Nb6 {[%clk 0:02:15]}  Rcd8 {[%clk 0:01:44]} 21. a4 {[%clk 0:02:15]}  Nc6 {[%clk 0:01:44]} 22. Be2 {[%clk 0:01:47]}  Nxd4 {[%clk 0:01:41]} 23. Bd3 {[%clk 0:01:48]}  g6 {[%clk 0:01:31]} 24. Qe3 {[%clk 0:01:39]}  Bg7 {[%clk 0:01:27]} 25. Bb1 {[%clk 0:01:36]}  Rfe8 {[%clk 0:01:21]} 26. Ba2 {[%clk 0:01:31]}  Nf5 {[%clk 0:01:08]} 27. Qd3 {[%clk 0:01:23]}  Qf4 {[%clk 0:01:08]} 28. g3 {[%clk 0:01:13]}  Qxb4 {[%clk 0:01:07]} 29. Qb3 {[%clk 0:01:06]}  Qxb3 {[%clk 0:01:05]} 30. Bxb3 {[%clk 0:01:07]}  Nd4 {[%clk 0:01:04]} 31. Bd1 {[%clk 0:01:06]}  Re7 {[%clk 0:01:02]} 32. a5 {[%clk 0:01:05]}  Rc7 {[%clk 0:01:02]} 33. f4 {[%clk 0:01:03]}  Nc6 {[%clk 0:01:03]} 34. Ra1 {[%clk 0:01:02]}  Bxa1 {[%clk 0:01:02]} 0-1


[Site "https://www.chess.com"]

[Event "Titled Tuesday Blitz March 07 Early 2023"]
[White "Gholami Orimi, Mahdi"]
[Black "Rottenwohrer Suarez, Juan"]
[WhiteFideId "12558486"]
[BlackFideId "32068182"]
[WhiteElo "2363"]
[BlackElo "2174"]
[Result "1-0"]
[Round "01"]
[TimeControl "180+2"]
[Date "2023.03.07"]
[WhiteClock "0:00:33"]
[BlackClock "0:00:02"]

1. d4 {[%clk 0:02:55]}  Nf6 {[%clk 0:02:59]} 2. c4 {[%clk 0:02:55]}  g6 {[%clk 0:02:55]} 3. f3 {[%clk 0:02:54]}  d6 {[%clk 0:02:54]} 4. e4 {[%clk 0:02:54]}  Bg7 {[%clk 0:02:55]} 5. Nc3 {[%clk 0:02:54]}  c6 {[%clk 0:02:54]} 6. Nge2 {[%clk 0:02:53]}  a6 {[%clk 0:02:55]} 7. h4 {[%clk 0:02:53]}  h5 {[%clk 0:02:47]} 8. Bg5 {[%clk 0:02:53]}  b5 {[%clk 0:02:46]} 9. Nf4 {[%clk 0:02:53]}  Nbd7 {[%clk 0:02:38]} 10. Qd2 {[%clk 0:02:50]}  Bb7 {[%clk 0:02:38]} 11. a3 {[%clk 0:02:44]}  Qa5 {[%clk 0:02:20]} 12. b4 {[%clk 0:02:43]}  Qc7 {[%clk 0:02:16]} 13. Rc1 {[%clk 0:02:42]}  e5 {[%clk 0:01:59]} 14. Nh3 {[%clk 0:02:27]}  Qb6 {[%clk 0:01:47]} 15. c5 {[%clk 0:02:20]}  dxc5 {[%clk 0:01:47]} 16. dxc5 {[%clk 0:02:21]}  Qc7 {[%clk 0:01:45]} 17. Rd1 {[%clk 0:02:17]}  O-O {[%clk 0:01:42]} 18. Qd6 {[%clk 0:02:12]}  Rfc8 {[%clk 0:01:34]} 19. Be2 {[%clk 0:02:06]}  a5 {[%clk 0:01:33]} 20. Kf2 {[%clk 0:01:59]}  axb4 {[%clk 0:01:28]} 21. axb4 {[%clk 0:02:00]}  Ra3 {[%clk 0:01:28]} 22. Qd2 {[%clk 0:01:56]}  Nf8 {[%clk 0:01:20]} 23. Qb2 {[%clk 0:01:54]}  Rca8 {[%clk 0:01:17]} 24. Rd6 {[%clk 0:01:48]}  Ne6 {[%clk 0:01:13]} 25. Rhd1 {[%clk 0:01:48]}  Nh7 {[%clk 0:00:44]} 26. Rd7 {[%clk 0:01:41]}  Qc8 {[%clk 0:00:45]} 27. Rd8+ {[%clk 0:01:37]}  Nxd8 {[%clk 0:00:42]} 28. Rxd8+ {[%clk 0:01:37]}  Nf8 {[%clk 0:00:36]} 29. Rxc8 {[%clk 0:01:37]}  Bxc8 {[%clk 0:00:37]} 30. Bc1 {[%clk 0:01:33]}  R3a7 {[%clk 0:00:33]} 31. Ng5 {[%clk 0:01:31]}  Ne6 {[%clk 0:00:33]} 32. Nxe6 {[%clk 0:01:22]}  Bxe6 {[%clk 0:00:32]} 33. Bd1 {[%clk 0:01:23]}  Ra2 {[%clk 0:00:30]} 34. Nxa2 {[%clk 0:01:18]}  Rxa2 {[%clk 0:00:31]} 35. g4 {[%clk 0:01:09]}  Rxb2+ {[%clk 0:00:12]} 36. Bxb2 {[%clk 0:01:09]}  hxg4 {[%clk 0:00:10]} 37. fxg4 {[%clk 0:01:10]}  f5 {[%clk 0:00:09]} 38. exf5 {[%clk 0:00:47]}  gxf5 {[%clk 0:00:10]} 39. g5 {[%clk 0:00:48]}  Bd5 {[%clk 0:00:07]} 40. h5 {[%clk 0:00:46]}  f4 {[%clk 0:00:02]} 41. h6 {[%clk 0:00:45]}  Bh8 {[%clk 0:00:01]} 42. g6 {[%clk 0:00:44]}  Bf6 {[%clk 0:00:01]} 43. Bg4 {[%clk 0:00:29]}  Be4 {[%clk 0:00:01]} 44. Be6+ {[%clk 0:00:29]}  Kh8 {[%clk 0:00:02]} 45. g7+ {[%clk 0:00:30]}  Bxg7 {[%clk 0:00:02]} 46. hxg7+ {[%clk 0:00:30]}  Kxg7 {[%clk 0:00:03]} 47. Bxe5+ {[%clk 0:00:31]}  Kf8 {[%clk 0:00:04]} 48. Bxf4 {[%clk 0:00:32]}  Ke7 {[%clk 0:00:03]} 49. Bb3 {[%clk 0:00:32]}  Bd3 {[%clk 0:00:02]} 50. Ke3 {[%clk 0:00:32]}  Bf5 {[%clk 0:00:02]} 51. Kd4 {[%clk 0:00:32]}  Kd7 {[%clk 0:00:02]} 52. Ke5 {[%clk 0:00:32]}  Bg4 {[%clk 0:00:02]} 53. Bg5 {[%clk 0:00:33]}  Bh3 {[%clk 0:00:03]} 54. Bc2 {[%clk 0:00:33]}  Kc7 {[%clk 0:00:02]} 55. Bf5 {[%clk 0:00:33]}  Bf1 {[%clk 0:00:02]} 56. Ke6 {[%clk 0:00:33]}  Bc4+ {[%clk 0:00:02]} 57. Ke7 {[%clk 0:00:33]}  Bd5 {[%clk 0:00:02]} 58. Bf4+ {[%clk 0:00:34]}  Kb7 {[%clk 0:00:03]} 59. Kd8 {[%clk 0:00:34]}  Bf3 {[%clk 0:00:02]} 60. Bc8+ {[%clk 0:00:35]}  Ka7 {[%clk 0:00:02]} 61. Kc7 {[%clk 0:00:34]}  Be4 {[%clk 0:00:01]} 62. Bd7 {[%clk 0:00:33]}  Bd5 {[%clk 0:00:02]} 63. Kc8 {[%clk 0:00:33]}  Ka6 {[%clk 0:00:02]} 64. Bc7 {[%clk 0:00:33]}  Ka7 {[%clk 0:00:01]} 65. Bb6+ {[%clk 0:00:32]}  Ka6 {[%clk 0:00:02]} 66. Kc7 {[%clk 0:00:32]}  Be4 {[%clk 0:00:02]} 67. Bc8# {[%clk 0:00:33]} 1-0


[Site "https://www.chess.com"]

[Event "Titled Tuesday Blitz March 07 Early 2023"]
[White "Rengifo Blancas, Renzo Jhonathan"]
[Black "Sjugirov, Sanan"]
[WhiteFideId "3807185"]
[BlackFideId "4189302"]
[WhiteElo "2085"]
[BlackElo "2569"]
[Result "0-1"]
[Round "01"]
[TimeControl "180+2"]
[Date "2023.03.07"]
[WhiteClock "0:00:20"]
[BlackClock "0:00:12"]

1. e4 {[%clk 0:02:59]}  c5 {[%clk 0:02:59]} 2. c3 {[%clk 0:02:59]}  Nf6 {[%clk 0:02:59]} 3. e5 {[%clk 0:02:59]}  Nd5 {[%clk 0:03:00]} 4. d4 {[%clk 0:02:59]}  cxd4 {[%clk 0:03:00]} 5. Nf3 {[%clk 0:02:59]}  d6 {[%clk 0:02:58]} 6. cxd4 {[%clk 0:02:59]}  e6 {[%clk 0:02:53]} 7. a3 {[%clk 0:02:57]}  Be7 {[%clk 0:02:52]} 8. Bd3 {[%clk 0:02:57]}  Bd7 {[%clk 0:02:50]} 9. O-O {[%clk 0:02:57]}  Bc6 {[%clk 0:02:51]} 10. Qe2 {[%clk 0:02:57]}  Nd7 {[%clk 0:02:49]} 11. Nc3 {[%clk 0:02:56]}  dxe5 {[%clk 0:02:42]} 12. dxe5 {[%clk 0:02:55]}  Nxc3 {[%clk 0:02:37]} 13. bxc3 {[%clk 0:02:55]}  Qa5 {[%clk 0:02:19]} 14. Bd2 {[%clk 0:02:53]}  Rd8 {[%clk 0:01:55]} 15. c4 {[%clk 0:02:53]}  Qc7 {[%clk 0:01:55]} 16. Bc3 {[%clk 0:02:51]}  Bxf3 {[%clk 0:01:38]} 17. gxf3 {[%clk 0:02:51]}  Bg5 {[%clk 0:01:29]} 18. Rad1 {[%clk 0:02:46]}  O-O {[%clk 0:01:07]} 19. f4 {[%clk 0:02:43]}  Be7 {[%clk 0:01:00]} 20. Kh1 {[%clk 0:01:57]}  Nc5 {[%clk 0:00:47]} 21. Be4 {[%clk 0:01:58]}  Nxe4 {[%clk 0:00:46]} 22. Qxe4 {[%clk 0:01:59]}  g6 {[%clk 0:00:44]} 23. Bb4 {[%clk 0:01:58]}  b6 {[%clk 0:00:40]} 24. Kg2 {[%clk 0:01:47]}  Bc5 {[%clk 0:00:37]} 25. h4 {[%clk 0:01:42]}  a5 {[%clk 0:00:36]} 26. Bxc5 {[%clk 0:01:38]}  Qxc5 {[%clk 0:00:37]} 27. a4 {[%clk 0:01:35]}  Qb4 {[%clk 0:00:31]} 28. Qc6 {[%clk 0:01:34]}  Rc8 {[%clk 0:00:30]} 29. Qb5 {[%clk 0:01:32]}  Rxc4 {[%clk 0:00:29]} 30. Rb1 {[%clk 0:01:29]}  Qxb5 {[%clk 0:00:29]} 31. Rxb5 {[%clk 0:01:28]}  Rxf4 {[%clk 0:00:28]} 32. Ra1 {[%clk 0:01:23]}  Rxh4 {[%clk 0:00:24]} 33. Rxb6 {[%clk 0:01:23]}  Rc8 {[%clk 0:00:19]} 34. Rb5 {[%clk 0:01:24]}  Rf4 {[%clk 0:00:17]} 35. Kg3 {[%clk 0:01:18]}  g5 {[%clk 0:00:17]} 36. Ra3 {[%clk 0:01:13]}  Ra8 {[%clk 0:00:16]} 37. Rb7 {[%clk 0:00:55]}  Kg7 {[%clk 0:00:16]} 38. f3 {[%clk 0:00:46]}  h5 {[%clk 0:00:16]} 39. Kg2 {[%clk 0:00:44]}  h4 {[%clk 0:00:16]} 40. Kh3 {[%clk 0:00:43]}  Kg6 {[%clk 0:00:16]} 41. Rb5 {[%clk 0:00:42]}  Kf5 {[%clk 0:00:12]} 42. Kg2 {[%clk 0:00:39]}  g4 {[%clk 0:00:08]} 43. fxg4+ {[%clk 0:00:38]}  Kxg4 {[%clk 0:00:09]} 44. Kh2 {[%clk 0:00:36]}  Rc8 {[%clk 0:00:09]} 45. Rb2 {[%clk 0:00:36]}  Rcc4 {[%clk 0:00:08]} 46. Rg2+ {[%clk 0:00:36]}  Kf5 {[%clk 0:00:09]} 47. Rg7 {[%clk 0:00:30]}  Kxe5 {[%clk 0:00:09]} 48. Re3+ {[%clk 0:00:23]}  Kf6 {[%clk 0:00:08]} 49. Rh7 {[%clk 0:00:24]}  Rxa4 {[%clk 0:00:09]} 50. Rd3 {[%clk 0:00:25]}  Rad4 {[%clk 0:00:08]} 51. Rc3 {[%clk 0:00:25]}  a4 {[%clk 0:00:06]} 52. Rc7 {[%clk 0:00:25]}  Kg6 {[%clk 0:00:06]} 53. Rh8 {[%clk 0:00:24]}  a3 {[%clk 0:00:06]} 54. Rg8+ {[%clk 0:00:25]}  Kf6 {[%clk 0:00:06]} 55. Rc2 {[%clk 0:00:24]}  Rb4 {[%clk 0:00:06]} 56. Rgg2 {[%clk 0:00:22]}  Rf3 {[%clk 0:00:04]} 57. Ra2 {[%clk 0:00:21]}  Rfb3 {[%clk 0:00:05]} 58. Rgf2+ {[%clk 0:00:21]}  Ke7 {[%clk 0:00:05]} 59. Rac2 {[%clk 0:00:20]}  Rb2 {[%clk 0:00:05]} 60. Rc7+ {[%clk 0:00:21]}  Kd6 {[%clk 0:00:06]} 61. Rxf7 {[%clk 0:00:19]}  Rxf2+ {[%clk 0:00:06]} 62. Rxf2 {[%clk 0:00:20]}  Rb2 {[%clk 0:00:07]} 63. Kh3 {[%clk 0:00:17]}  Rxf2 {[%clk 0:00:07]} 64. Kg4 {[%clk 0:00:18]}  Rb2 {[%clk 0:00:08]} 65. Kh3 {[%clk 0:00:19]}  a2 {[%clk 0:00:08]} 66. Kg4 {[%clk 0:00:19]}  a1=Q {[%clk 0:00:09]} 67. Kh3 {[%clk 0:00:20]}  Qa3+ {[%clk 0:00:10]} 68. Kg4 {[%clk 0:00:20]}  Rb4+ {[%clk 0:00:11]} 69. Kh5 {[%clk 0:00:20]}  Qf3+ {[%clk 0:00:11]} 70. Kh6 {[%clk 0:00:20]}  Rg4 {[%clk 0:00:11]} 71. Kh5 {[%clk 0:00:20]}  Qf5+ {[%clk 0:00:11]} 72. Kh6 {[%clk 0:00:20]}  Qg6# {[%clk 0:00:12]} 0-1


[Site "https://www.chess.com"]

[Event "Titled Tuesday Blitz March 07 Early 2023"]
[White "ArchibaldCerveza29"]
[Black "Ibarra Jerez, Jose Carlos"]
[BlackFideId "2226332"]
[WhiteElo "2465"]
[BlackElo "2638"]
[Result "0-1"]
[Round "01"]
[TimeControl "180+2"]
[Date "2023.03.07"]
[WhiteClock "0:00:10"]
[BlackClock "0:01:21"]

1. e4 {[%clk 0:02:59]}  c5 {[%clk 0:02:57]} 2. Nf3 {[%clk 0:02:57]}  e6 {[%clk 0:02:57]} 3. d4 {[%clk 0:02:55]}  cxd4 {[%clk 0:02:57]} 4. Nxd4 {[%clk 0:02:56]}  Bc5 {[%clk 0:02:58]} 5. Nb3 {[%clk 0:02:53]}  Bb6 {[%clk 0:02:58]} 6. Be2 {[%clk 0:02:48]}  Ne7 {[%clk 0:02:58]} 7. O-O {[%clk 0:02:46]}  O-O {[%clk 0:02:58]} 8. Nc3 {[%clk 0:02:46]}  f5 {[%clk 0:02:59]} 9. Kh1 {[%clk 0:02:43]}  f4 {[%clk 0:02:58]} 10. a4 {[%clk 0:02:37]}  Nbc6 {[%clk 0:02:58]} 11. a5 {[%clk 0:02:35]}  Nxa5 {[%clk 0:02:58]} 12. Nxa5 {[%clk 0:02:19]}  Bxa5 {[%clk 0:02:59]} 13. Nb5 {[%clk 0:02:06]}  d5 {[%clk 0:02:54]} 14. exd5 {[%clk 0:02:06]}  Nxd5 {[%clk 0:02:36]} 15. c4 {[%clk 0:01:33]}  a6 {[%clk 0:02:35]} 16. cxd5 {[%clk 0:01:31]}  axb5 {[%clk 0:02:35]} 17. dxe6 {[%clk 0:01:24]}  Qxd1 {[%clk 0:02:25]} 18. Rxd1 {[%clk 0:01:25]}  Bxe6 {[%clk 0:02:25]} 19. Bxb5 {[%clk 0:01:23]}  Bb3 {[%clk 0:02:18]} 20. Rd4 {[%clk 0:01:08]}  Bb6 {[%clk 0:02:12]} 21. Rxa8 {[%clk 0:01:03]}  Rxa8 {[%clk 0:02:13]} 22. Rxf4 {[%clk 0:00:23]}  Ra1 {[%clk 0:01:36]} 23. Bc4+ {[%clk 0:00:23]}  Bxc4 {[%clk 0:01:35]} 24. Rxc4 {[%clk 0:00:24]}  Bxf2 {[%clk 0:01:35]} 25. Rc8+ {[%clk 0:00:14]}  Kf7 {[%clk 0:01:35]} 26. Rc3 {[%clk 0:00:15]}  Be3 {[%clk 0:01:23]} 27. Rc7+ {[%clk 0:00:10]}  Ke6 {[%clk 0:01:23]} 28. g3 {[%clk 0:00:09]}  Rxc1+ {[%clk 0:01:21]} 29. Rxc1 {[%clk 0:00:10]}  Bxc1 {[%clk 0:01:21]} 0-1


[Site "https://www.chess.com"]